[Event "January 2 Early 2024"]
[Site "https://www.chess.com"]
[Date "2024.01.02"]
[Round "5"]
[White "Sailer, Mike"]
[Black "Sokolov, Andrei"]
[Result "1-0"]
[Board "165"]
[TimeControl "180+1"]
[WhiteFideId "2012901"]
[BlackFideId "11600306"]
[WhiteElo "2193"]
[BlackElo "2383"]
[WhiteTeam "USA"]
[BlackTeam "LAT"]
[WhiteClock "0:00:38"]
[BlackClock "0:00:13"]

1. d4 {[%clk 0:03:00]}  d5 {[%clk 0:02:56]} 2. Bf4 {[%clk 0:02:58]}  Nf6 {[%clk 0:02:56]} 3. Nc3 {[%clk 0:02:57]}  a6 {[%clk 0:02:52]} 4. e3 {[%clk 0:02:53]}  e6 {[%clk 0:02:51]} 5. g4 {[%clk 0:02:48]}  h6 {[%clk 0:02:46]} 6. h4 {[%clk 0:02:46]}  c5 {[%clk 0:02:41]} 7. Bg2 {[%clk 0:02:41]}  Nc6 {[%clk 0:02:36]} 8. g5 {[%clk 0:02:39]}  hxg5 {[%clk 0:02:35]} 9. hxg5 {[%clk 0:02:39]}  Rxh1 {[%clk 0:02:35]} 10. Bxh1 {[%clk 0:02:40]}  Nd7 {[%clk 0:02:31]} 11. Qh5 {[%clk 0:02:35]}  g6 {[%clk 0:02:28]} 12. Qh8 {[%clk 0:02:30]}  cxd4 {[%clk 0:02:22]} 13. exd4 {[%clk 0:02:30]}  Nxd4 {[%clk 0:02:18]} 14. O-O-O {[%clk 0:02:28]}  Nf5 {[%clk 0:02:08]} 15. Nf3 {[%clk 0:02:18]}  Qe7 {[%clk 0:01:58]} 16. Nxd5 {[%clk 0:02:09]}  exd5 {[%clk 0:01:46]} 17. Re1 {[%clk 0:02:09]}  Qxe1+ {[%clk 0:01:43]} 18. Nxe1 {[%clk 0:02:09]}  Ke7 {[%clk 0:01:20]} 19. Bxd5 {[%clk 0:02:02]}  Bg7 {[%clk 0:00:43]} 20. Qg8 {[%clk 0:01:47]}  Ne5 {[%clk 0:00:43]} 21. Bxe5 {[%clk 0:01:40]}  Bxe5 {[%clk 0:00:44]} 22. Qxf7+ {[%clk 0:01:39]}  Kd6 {[%clk 0:00:36]} 23. Nd3 {[%clk 0:01:24]}  Bd4 {[%clk 0:00:28]} 24. c4 {[%clk 0:01:07]}  Bd7 {[%clk 0:00:22]} 25. Qxg6+ {[%clk 0:00:58]}  Kc7 {[%clk 0:00:20]} 26. c5 {[%clk 0:00:44]}  Rh8 {[%clk 0:00:18]} 27. Qb6+ {[%clk 0:00:42]}  Kc8 {[%clk 0:00:15]} 28. Bxb7+ {[%clk 0:00:41]}  Kb8 {[%clk 0:00:15]} 29. Bc6+ {[%clk 0:00:37]}  Kc8 {[%clk 0:00:14]} 30. Qb7+ {[%clk 0:00:37]}  Kd8 {[%clk 0:00:13]} 31. Qxd7# {[%clk 0:00:38]} 1-0

[Event "January 2 Early 2024"]
[Site "https://www.chess.com"]
[Date "2024.01.02"]
[Round "5"]
[White "Chandra, Vania Vindy"]
[Black "Novak, Ratko"]
[Result "0-1"]
[Board "170"]
[TimeControl "180+1"]
[WhiteFideId "7103441"]
[BlackFideId "14511827"]
[WhiteElo "2173"]
[BlackElo "2368"]
[WhiteTeam "INA"]
[BlackTeam "CRO"]
[WhiteClock "0:00:36"]
[BlackClock "0:02:12"]

1. d4 {[%clk 0:02:50]}  d5 {[%clk 0:03:00]} 2. c4 {[%clk 0:02:50]}  c5 {[%clk 0:03:00]} 3. dxc5 {[%clk 0:02:48]}  d4 {[%clk 0:02:58]} 4. Nf3 {[%clk 0:02:47]}  Nc6 {[%clk 0:02:58]} 5. e3 {[%clk 0:02:43]}  e5 {[%clk 0:02:58]} 6. exd4 {[%clk 0:02:42]}  exd4 {[%clk 0:02:59]} 7. Bd3 {[%clk 0:02:40]}  Bxc5 {[%clk 0:02:58]} 8. O-O {[%clk 0:02:40]}  Nge7 {[%clk 0:02:59]} 9. Re1 {[%clk 0:02:41]}  O-O {[%clk 0:02:59]} 10. Bxh7+ {[%clk 0:02:33]}  Kxh7 {[%clk 0:02:58]} 11. Ng5+ {[%clk 0:02:33]}  Kg8 {[%clk 0:02:58]} 12. Qh5 {[%clk 0:02:33]}  Bf5 {[%clk 0:02:58]} 13. Nd2 {[%clk 0:02:09]}  f6 {[%clk 0:02:56]} 14. Ne6 {[%clk 0:02:06]}  Bxe6 {[%clk 0:02:53]} 15. Qxc5 {[%clk 0:02:06]}  Qd7 {[%clk 0:02:40]} 16. Nf3 {[%clk 0:02:03]}  b6 {[%clk 0:02:40]} 17. Qh5 {[%clk 0:02:02]}  Bxc4 {[%clk 0:02:39]} 18. Bf4 {[%clk 0:01:58]}  Qf5 {[%clk 0:02:35]} 19. Qxf5 {[%clk 0:01:49]}  Nxf5 {[%clk 0:02:35]} 20. g4 {[%clk 0:01:49]}  Bd5 {[%clk 0:02:21]} 21. gxf5 {[%clk 0:01:37]}  Bxf3 {[%clk 0:02:20]} 22. b4 {[%clk 0:01:27]}  d3 {[%clk 0:02:14]} 23. Re6 {[%clk 0:00:45]}  Nd4 {[%clk 0:02:13]} 24. Rd6 {[%clk 0:00:36]}  Ne2+ {[%clk 0:02:12]} 0-1

[Event "January 2 Early 2024"]
[Site "https://www.chess.com"]
[Date "2024.01.02"]
[Round "5"]
[White "Mende, Andreas"]
[Black "Nayak Rajesh"]
[Result "0-1"]
[Board "171"]
[TimeControl "180+1"]
[WhiteFideId "4631102"]
[BlackFideId "35017152"]
[WhiteElo "2156"]
[BlackElo "2364"]
[WhiteTeam "GER"]
[BlackTeam "IND"]
[WhiteClock "0:00:10"]
[BlackClock "0:01:13"]

1. c4 {[%clk 0:03:00]}  Nf6 {[%clk 0:02:59]} 2. g3 {[%clk 0:03:00]}  g6 {[%clk 0:02:59]} 3. Bg2 {[%clk 0:03:00]}  Bg7 {[%clk 0:03:00]} 4. Nc3 {[%clk 0:02:59]}  O-O {[%clk 0:03:01]} 5. e4 {[%clk 0:02:57]}  d6 {[%clk 0:03:01]} 6. Nge2 {[%clk 0:02:57]}  e5 {[%clk 0:03:01]} 7. O-O {[%clk 0:02:57]}  Nc6 {[%clk 0:03:02]} 8. d3 {[%clk 0:02:57]}  Nh5 {[%clk 0:03:01]} 9. Be3 {[%clk 0:02:43]}  f5 {[%clk 0:03:01]} 10. f3 {[%clk 0:02:35]}  f4 {[%clk 0:03:00]} 11. Bf2 {[%clk 0:02:11]}  fxg3 {[%clk 0:02:32]} 12. hxg3 {[%clk 0:02:11]}  Bh6 {[%clk 0:02:32]} 13. Nd5 {[%clk 0:02:07]}  Be6 {[%clk 0:02:31]} 14. g4 {[%clk 0:01:51]}  Nf4 {[%clk 0:02:28]} 15. Nexf4 {[%clk 0:01:45]}  Bxf4 {[%clk 0:02:23]} 16. Nxf4 {[%clk 0:01:44]}  Rxf4 {[%clk 0:02:22]} 17. Bg3 {[%clk 0:01:42]}  Rf7 {[%clk 0:02:17]} 18. Qd2 {[%clk 0:01:40]}  Nd4 {[%clk 0:02:13]} 19. f4 {[%clk 0:01:37]}  Bxg4 {[%clk 0:02:00]} 20. Rf2 {[%clk 0:01:21]}  Qd7 {[%clk 0:01:34]} 21. fxe5 {[%clk 0:01:14]}  Raf8 {[%clk 0:01:33]} 22. Rxf7 {[%clk 0:01:08]}  Rxf7 {[%clk 0:01:31]} 23. Re1 {[%clk 0:01:01]}  Bf3 {[%clk 0:01:28]} 24. exd6 {[%clk 0:00:52]}  Bxg2 {[%clk 0:01:27]} 25. Kxg2 {[%clk 0:00:48]}  Nf3 {[%clk 0:01:24]} 26. Qc3 {[%clk 0:00:38]}  Qg4 {[%clk 0:01:17]} 27. dxc7 {[%clk 0:00:31]}  Nh4+ {[%clk 0:01:16]} 28. Kh2 {[%clk 0:00:29]}  Rf2+ {[%clk 0:01:15]} 29. Kh1 {[%clk 0:00:11]}  Qh3+ {[%clk 0:01:14]} 30. Kg1 {[%clk 0:00:10]}  Qg2# {[%clk 0:01:13]} 0-1

[Event "January 2 Early 2024"]
[Site "https://www.chess.com"]
[Date "2024.01.02"]
[Round "5"]
[White "Bueno, Alfeu Junior Varela"]
[Black "Jing, Andrew"]
[Result "1-0"]
[Board "173"]
[TimeControl "180+1"]
[WhiteFideId "2108879"]
[BlackFideId "30984076"]
[WhiteElo "2342"]
[BlackElo "2146"]
[WhiteTeam "BRA"]
[BlackTeam "USA"]
[WhiteClock "0:00:13"]
[BlackClock "0:01:56"]

1. e4 {[%clk 0:02:57]}  e5 {[%clk 0:02:43]} 2. Nc3 {[%clk 0:02:56]}  Nf6 {[%clk 0:02:42]} 3. f4 {[%clk 0:02:55]}  d5 {[%clk 0:02:42]} 4. fxe5 {[%clk 0:02:55]}  Nxe4 {[%clk 0:02:43]} 5. Qf3 {[%clk 0:02:56]}  f5 {[%clk 0:02:41]} 6. d3 {[%clk 0:02:55]}  Nxc3 {[%clk 0:02:40]} 7. bxc3 {[%clk 0:02:56]}  d4 {[%clk 0:02:41]} 8. Qg3 {[%clk 0:02:56]}  dxc3 {[%clk 0:02:40]} 9. Be2 {[%clk 0:02:36]}  Be6 {[%clk 0:02:40]} 10. Nf3 {[%clk 0:02:28]}  Nc6 {[%clk 0:02:36]} 11. Be3 {[%clk 0:02:20]}  Qd7 {[%clk 0:02:33]} 12. O-O {[%clk 0:02:14]}  O-O-O {[%clk 0:02:32]} 13. d4 {[%clk 0:01:56]}  h6 {[%clk 0:02:31]} 14. Bb5 {[%clk 0:01:52]}  a6 {[%clk 0:02:28]} 15. Ba4 {[%clk 0:01:48]}  g5 {[%clk 0:02:25]} 16. Qf2 {[%clk 0:01:39]}  Ba3 {[%clk 0:02:21]} 17. Ne1 {[%clk 0:01:24]}  f4 {[%clk 0:02:20]} 18. Bc1 {[%clk 0:01:24]}  Bxc1 {[%clk 0:02:20]} 19. Rxc1 {[%clk 0:01:25]}  b5 {[%clk 0:02:21]} 20. Bb3 {[%clk 0:01:24]}  Nxd4 {[%clk 0:02:19]} 21. Nd3 {[%clk 0:01:16]}  Bxb3 {[%clk 0:02:14]} 22. cxb3 {[%clk 0:01:10]}  c2 {[%clk 0:02:13]} 23. Nb4 {[%clk 0:01:01]}  a5 {[%clk 0:02:11]} 24. Nxc2 {[%clk 0:00:59]}  Nxc2 {[%clk 0:02:10]} 25. Rxc2 {[%clk 0:01:00]}  Kb7 {[%clk 0:02:08]} 26. Rfc1 {[%clk 0:00:58]}  c6 {[%clk 0:02:07]} 27. Rxc6 {[%clk 0:00:45]}  Qxc6 {[%clk 0:02:06]} 28. Rxc6 {[%clk 0:00:33]}  Kxc6 {[%clk 0:02:07]} 29. Qc2+ {[%clk 0:00:27]}  Kb6 {[%clk 0:02:04]} 30. Qg6+ {[%clk 0:00:19]}  Kc5 {[%clk 0:02:00]} 31. Kf2 {[%clk 0:00:19]}  Rhe8 {[%clk 0:01:52]} 32. e6 {[%clk 0:00:16]}  Rd6 {[%clk 0:01:50]} 33. Qxe8 {[%clk 0:00:14]}  g4 {[%clk 0:01:47]} 34. e7 {[%clk 0:00:13]}  Rd2+ {[%clk 0:01:46]} 35. Ke1 {[%clk 0:00:14]}  Rxg2 {[%clk 0:01:46]} 36. Qc8+ {[%clk 0:00:13]}  Kb4 {[%clk 0:01:46]} 37. e8=Q {[%clk 0:00:13]}  Ka3 {[%clk 0:01:46]} 38. Qc5+ {[%clk 0:00:13]}  Kb2 {[%clk 0:01:45]} 39. Qe2+ {[%clk 0:00:13]}  Rxe2+ {[%clk 0:01:45]} 40. Kxe2 {[%clk 0:00:14]}  f3+ {[%clk 0:01:46]} 41. Kf2 {[%clk 0:00:13]}  h5 {[%clk 0:01:47]} 42. Qxb5 {[%clk 0:00:13]}  h4 {[%clk 0:01:46]} 43. Qxa5 {[%clk 0:00:13]}  g3+ {[%clk 0:01:47]} 44. hxg3 {[%clk 0:00:13]}  hxg3+ {[%clk 0:01:48]} 45. Kxg3 {[%clk 0:00:13]}  f2 {[%clk 0:01:49]} 46. Kxf2 {[%clk 0:00:13]}  Ka1 {[%clk 0:01:50]} 47. b4 {[%clk 0:00:13]}  Kb2 {[%clk 0:01:51]} 48. b5 {[%clk 0:00:13]}  Ka1 {[%clk 0:01:51]} 49. b6 {[%clk 0:00:14]}  Kb2 {[%clk 0:01:52]} 50. b7 {[%clk 0:00:14]}  Ka1 {[%clk 0:01:53]} 51. a4 {[%clk 0:00:14]}  Kb2 {[%clk 0:01:54]} 52. b8=Q+ {[%clk 0:00:13]}  Ka1 {[%clk 0:01:55]} 53. Qc3+ {[%clk 0:00:13]}  Ka2 {[%clk 0:01:56]} 54. Qcb2# {[%clk 0:00:13]} 1-0

[Event "January 2 Early 2024"]
[Site "https://www.chess.com"]
[Date "2024.01.02"]
[Round "5"]
[White "Dahl, Trygve"]
[Black "KSho99"]
[Result "1-0"]
[Board "174"]
[TimeControl "180+1"]
[WhiteFideId "1513427"]
[WhiteElo "2327"]
[BlackElo "2144"]
[WhiteTeam "NOR"]
[WhiteClock "0:01:02"]
[BlackClock "0:00:00"]

1. Nf3 {[%clk 0:03:00]}  e6 {[%clk 0:02:58]} 2. d4 {[%clk 0:02:53]}  f5 {[%clk 0:02:57]} 3. g3 {[%clk 0:02:54]}  Nf6 {[%clk 0:02:57]} 4. Bg2 {[%clk 0:02:55]}  d5 {[%clk 0:02:57]} 5. O-O {[%clk 0:02:56]}  Be7 {[%clk 0:02:57]} 6. b3 {[%clk 0:02:52]}  Ne4 {[%clk 0:02:53]} 7. c4 {[%clk 0:02:50]}  Nc6 {[%clk 0:02:50]} 8. Bb2 {[%clk 0:02:46]}  h5 {[%clk 0:02:46]} 9. Ne5 {[%clk 0:02:41]}  Nxe5 {[%clk 0:02:21]} 10. dxe5 {[%clk 0:02:38]}  h4 {[%clk 0:02:21]} 11. Nd2 {[%clk 0:02:30]}  hxg3 {[%clk 0:01:51]} 12. hxg3 {[%clk 0:02:19]}  Bc5 {[%clk 0:01:10]} 13. Nxe4 {[%clk 0:01:44]}  fxe4 {[%clk 0:01:10]} 14. Bd4 {[%clk 0:01:33]}  Bxd4 {[%clk 0:00:45]} 15. Qxd4 {[%clk 0:01:26]}  c6 {[%clk 0:00:43]} 16. Qe3 {[%clk 0:01:21]}  Qe7 {[%clk 0:00:29]} 17. f3 {[%clk 0:01:16]}  exf3 {[%clk 0:00:27]} 18. Rxf3 {[%clk 0:01:16]}  Rf8 {[%clk 0:00:09]} 19. Raf1 {[%clk 0:01:15]}  Rxf3 {[%clk 0:00:09]} 20. Qxf3 {[%clk 0:01:14]}  Bd7 {[%clk 0:00:06]} 21. Qh5+ {[%clk 0:01:11]}  Kd8 {[%clk 0:00:06]} 22. Qh8+ {[%clk 0:01:06]}  Be8 {[%clk 0:00:05]} 23. Rf8 {[%clk 0:01:05]}  Kd7 {[%clk 0:00:00]} 24. Rg8 {[%clk 0:01:02]} 1-0

[Event "January 2 Early 2024"]
[Site "https://www.chess.com"]
[Date "2024.01.02"]
[Round "5"]
[White "Gopal, K.N."]
[Black "Larina, Maria"]
[Result "1-0"]
[Board "175"]
[TimeControl "180+1"]
[WhiteFideId "5001447"]
[BlackFideId "24113182"]
[WhiteElo "2134"]
[BlackElo "2326"]
[WhiteTeam "IND"]
[BlackTeam "FID"]
[WhiteClock "0:01:07"]
[BlackClock "0:00:14"]

1. e4 {[%clk 0:03:00]}  c6 {[%clk 0:02:59]} 2. d4 {[%clk 0:02:59]}  d5 {[%clk 0:03:00]} 3. e5 {[%clk 0:02:56]}  Bf5 {[%clk 0:03:00]} 4. Bd3 {[%clk 0:02:56]}  Bxd3 {[%clk 0:02:58]} 5. Qxd3 {[%clk 0:02:56]}  e6 {[%clk 0:02:58]} 6. f4 {[%clk 0:02:56]}  Nd7 {[%clk 0:02:57]} 7. Be3 {[%clk 0:02:56]}  a6 {[%clk 0:02:55]} 8. Nd2 {[%clk 0:02:56]}  c5 {[%clk 0:02:54]} 9. c3 {[%clk 0:02:54]}  Qb6 {[%clk 0:02:53]} 10. Ngf3 {[%clk 0:02:53]}  Nh6 {[%clk 0:02:51]} 11. h3 {[%clk 0:02:49]}  Nf5 {[%clk 0:02:50]} 12. Bf2 {[%clk 0:02:49]}  Rc8 {[%clk 0:02:35]} 13. a3 {[%clk 0:02:42]}  h5 {[%clk 0:02:30]} 14. O-O {[%clk 0:02:40]}  Be7 {[%clk 0:02:25]} 15. b4 {[%clk 0:01:59]}  cxd4 {[%clk 0:02:24]} 16. Nxd4 {[%clk 0:01:51]}  Nxd4 {[%clk 0:02:10]} 17. Bxd4 {[%clk 0:01:50]}  Qc7 {[%clk 0:02:10]} 18. f5 {[%clk 0:01:49]}  Nxe5 {[%clk 0:01:47]} 19. Qe2 {[%clk 0:01:41]}  Bf6 {[%clk 0:01:41]} 20. fxe6 {[%clk 0:01:38]}  fxe6 {[%clk 0:01:41]} 21. Rae1 {[%clk 0:01:36]}  Ng6 {[%clk 0:00:51]} 22. Qxe6+ {[%clk 0:01:28]}  Ne7 {[%clk 0:00:28]} 23. Rxf6 {[%clk 0:01:16]}  gxf6 {[%clk 0:00:12]} 24. Bxf6 {[%clk 0:01:15]}  Rh7 {[%clk 0:00:12]} 25. Qg8+ {[%clk 0:01:13]}  Kd7 {[%clk 0:00:12]} 26. Qxh7 {[%clk 0:01:13]}  Re8 {[%clk 0:00:13]} 27. Rxe7+ {[%clk 0:01:10]}  Rxe7 {[%clk 0:00:13]} 28. Qxe7+ {[%clk 0:01:07]}  Kc6 {[%clk 0:00:14]} 1-0

[Event "January 2 Early 2024"]
[Site "https://www.chess.com"]
[Date "2024.01.02"]
[Round "5"]
[White "Crocker, Philip J"]
[Black "Zampronha, Wladimir Camilo"]
[Result "0-1"]
[Board "178"]
[TimeControl "180+1"]
[WhiteFideId "403180"]
[BlackFideId "2103087"]
[WhiteElo "2089"]
[BlackElo "2311"]
[WhiteTeam "ENG"]
[BlackTeam "BRA"]
[WhiteClock "0:00:00"]
[BlackClock "0:00:02"]

1. d4 {[%clk 0:03:00]}  Nf6 {[%clk 0:02:59]} 2. Bg5 {[%clk 0:03:00]}  Ne4 {[%clk 0:02:58]} 3. Bf4 {[%clk 0:02:59]}  c5 {[%clk 0:02:59]} 4. d5 {[%clk 0:02:59]}  Qb6 {[%clk 0:02:46]} 5. Nd2 {[%clk 0:02:58]}  Qxb2 {[%clk 0:02:39]} 6. Nxe4 {[%clk 0:02:53]}  Qb4+ {[%clk 0:02:38]} 7. Bd2 {[%clk 0:02:53]}  Qxe4 {[%clk 0:02:37]} 8. c4 {[%clk 0:02:51]}  e6 {[%clk 0:02:21]} 9. dxe6 {[%clk 0:02:41]}  dxe6 {[%clk 0:02:18]} 10. e3 {[%clk 0:02:39]}  Be7 {[%clk 0:02:16]} 11. Nf3 {[%clk 0:02:37]}  O-O {[%clk 0:02:13]} 12. Qb3 {[%clk 0:02:33]}  Rd8 {[%clk 0:02:08]} 13. Rd1 {[%clk 0:02:29]}  Nc6 {[%clk 0:02:07]} 14. Be2 {[%clk 0:02:28]}  e5 {[%clk 0:02:04]} 15. O-O {[%clk 0:02:26]}  b6 {[%clk 0:01:53]} 16. Bc3 {[%clk 0:02:21]}  Bg4 {[%clk 0:01:38]} 17. h3 {[%clk 0:02:19]}  Bh5 {[%clk 0:01:37]} 18. Rd5 {[%clk 0:02:11]}  Rxd5 {[%clk 0:01:15]} 19. cxd5 {[%clk 0:02:10]}  Nb4 {[%clk 0:01:11]} 20. Rd1 {[%clk 0:02:02]}  Bd6 {[%clk 0:01:08]} 21. Bxb4 {[%clk 0:01:59]}  cxb4 {[%clk 0:01:07]} 22. Bd3 {[%clk 0:01:53]}  Bxf3 {[%clk 0:00:44]} 23. Bxe4 {[%clk 0:01:52]}  Bxe4 {[%clk 0:00:45]} 24. f3 {[%clk 0:01:52]}  Bf5 {[%clk 0:00:43]} 25. e4 {[%clk 0:01:52]}  Bd7 {[%clk 0:00:43]} 26. Rc1 {[%clk 0:01:49]}  Bc5+ {[%clk 0:00:42]} 27. Kh2 {[%clk 0:01:48]}  a5 {[%clk 0:00:41]} 28. g3 {[%clk 0:01:31]}  a4 {[%clk 0:00:40]} 29. Qd3 {[%clk 0:01:26]}  Ra5 {[%clk 0:00:38]} 30. f4 {[%clk 0:01:24]}  f6 {[%clk 0:00:28]} 31. fxe5 {[%clk 0:01:22]}  fxe5 {[%clk 0:00:29]} 32. Qf3 {[%clk 0:01:16]}  Ra8 {[%clk 0:00:27]} 33. Qh5 {[%clk 0:01:11]}  Bd6 {[%clk 0:00:23]} 34. h4 {[%clk 0:01:03]}  b3 {[%clk 0:00:22]} 35. Rf1 {[%clk 0:00:54]}  g6 {[%clk 0:00:20]} 36. Qe2 {[%clk 0:00:46]}  bxa2 {[%clk 0:00:19]} 37. Qxa2 {[%clk 0:00:46]}  a3 {[%clk 0:00:20]} 38. h5 {[%clk 0:00:35]}  b5 {[%clk 0:00:18]} 39. hxg6 {[%clk 0:00:35]}  hxg6 {[%clk 0:00:19]} 40. Rf6 {[%clk 0:00:20]}  Bf8 {[%clk 0:00:13]} 41. Rxg6+ {[%clk 0:00:18]}  Kf7 {[%clk 0:00:13]} 42. Rb6 {[%clk 0:00:11]}  Rc8 {[%clk 0:00:12]} 43. Qf2+ {[%clk 0:00:10]}  Ke8 {[%clk 0:00:12]} 44. Rb7 {[%clk 0:00:09]}  Ra8 {[%clk 0:00:04]} 45. Qe2 {[%clk 0:00:06]}  a2 {[%clk 0:00:02]} 46. Qh5+ {[%clk 0:00:06]}  Kd8 {[%clk 0:00:02]} 47. Qg5+ {[%clk 0:00:05]}  Kc8 {[%clk 0:00:02]} 48. Rxd7 {[%clk 0:00:02]}  Kxd7 {[%clk 0:00:02]} 49. Qf5+ {[%clk 0:00:01]}  Kd6 {[%clk 0:00:02]} 50. Qf6+ {[%clk 0:00:00]}  Kc5 {[%clk 0:00:02]} 0-1

[Event "January 2 Early 2024"]
[Site "https://www.chess.com"]
[Date "2024.01.02"]
[Round "5"]
[White "Smirnov, Timofey"]
[Black "Skaric, Djuro"]
[Result "0-1"]
[Board "181"]
[TimeControl "180+1"]
[WhiteFideId "24176427"]
[BlackFideId "934569"]
[WhiteElo "1990"]
[BlackElo "2298"]
[WhiteTeam "RUS"]
[BlackTeam "SRB"]
[WhiteClock "0:00:21"]
[BlackClock "0:02:31"]

1. d4 {[%clk 0:03:00]}  d6 {[%clk 0:03:00]} 2. Bf4 {[%clk 0:02:59]}  g6 {[%clk 0:03:00]} 3. Nc3 {[%clk 0:02:59]}  Bg7 {[%clk 0:03:01]} 4. e4 {[%clk 0:02:59]}  Nf6 {[%clk 0:03:02]} 5. e5 {[%clk 0:02:59]}  Nfd7 {[%clk 0:03:01]} 6. Nf3 {[%clk 0:02:57]}  O-O {[%clk 0:03:01]} 7. Qd2 {[%clk 0:02:52]}  Nc6 {[%clk 0:03:01]} 8. O-O-O {[%clk 0:02:49]}  a6 {[%clk 0:03:00]} 9. Bh6 {[%clk 0:02:34]}  dxe5 {[%clk 0:02:57]} 10. dxe5 {[%clk 0:02:30]}  Ndxe5 {[%clk 0:02:55]} 11. Qxd8 {[%clk 0:02:23]}  Bxh6+ {[%clk 0:02:52]} 12. Kb1 {[%clk 0:01:40]}  Rxd8 {[%clk 0:02:49]} 13. Rxd8+ {[%clk 0:01:40]}  Nxd8 {[%clk 0:02:48]} 14. Nxe5 {[%clk 0:01:40]}  Bg7 {[%clk 0:02:49]} 15. Nf3 {[%clk 0:01:28]}  Be6 {[%clk 0:02:47]} 16. h4 {[%clk 0:01:20]}  h6 {[%clk 0:02:47]} 17. Be2 {[%clk 0:01:11]}  Nc6 {[%clk 0:02:46]} 18. Rd1 {[%clk 0:01:09]}  Bxc3 {[%clk 0:02:46]} 19. bxc3 {[%clk 0:01:09]}  Kg7 {[%clk 0:02:47]} 20. Nd4 {[%clk 0:01:08]}  Nxd4 {[%clk 0:02:46]} 21. cxd4 {[%clk 0:01:09]}  Rd8 {[%clk 0:02:44]} 22. Bf3 {[%clk 0:01:05]}  c5 {[%clk 0:02:39]} 23. d5 {[%clk 0:00:54]}  Bd7 {[%clk 0:02:37]} 24. d6 {[%clk 0:00:49]}  e6 {[%clk 0:02:37]} 25. Bxb7 {[%clk 0:00:47]}  Rb8 {[%clk 0:02:37]} 26. Ka1 {[%clk 0:00:32]}  Rxb7 {[%clk 0:02:36]} 27. c4 {[%clk 0:00:32]}  Rb4 {[%clk 0:02:35]} 28. Rc1 {[%clk 0:00:28]}  Kf6 {[%clk 0:02:34]} 29. a3 {[%clk 0:00:28]}  Rb6 {[%clk 0:02:33]} 30. Rd1 {[%clk 0:00:28]}  Ke5 {[%clk 0:02:33]} 31. Re1+ {[%clk 0:00:24]}  Kxd6 {[%clk 0:02:32]} 32. Rd1+ {[%clk 0:00:24]}  Ke7 {[%clk 0:02:31]} 33. Rb1 {[%clk 0:00:23]}  Rxb1+ {[%clk 0:02:30]} 34. Kxb1 {[%clk 0:00:21]}  Bc6 {[%clk 0:02:31]} 0-1

[Event "January 2 Early 2024"]
[Site "https://www.chess.com"]
[Date "2024.01.02"]
[Round "5"]
[White "Blokhin, Sofia"]
[Black "Murthy, Pappu"]
[Result "1-0"]
[Board "182"]
[TimeControl "180+1"]
[WhiteFideId "4508190"]
[BlackFideId "2013401"]
[WhiteElo "2297"]
[BlackElo "1988"]
[WhiteTeam "EST"]
[BlackTeam "USA"]
[WhiteClock "0:00:33"]
[BlackClock "0:00:00"]

1. d4 {[%clk 0:03:00]}  Nf6 {[%clk 0:02:55]} 2. c4 {[%clk 0:02:59]}  e6 {[%clk 0:02:52]} 3. Nc3 {[%clk 0:02:59]}  d5 {[%clk 0:02:51]} 4. Nf3 {[%clk 0:02:57]}  Bb4 {[%clk 0:02:51]} 5. e3 {[%clk 0:02:56]}  O-O {[%clk 0:02:48]} 6. Bd3 {[%clk 0:02:52]}  dxc4 {[%clk 0:02:47]} 7. Bxc4 {[%clk 0:02:52]}  c5 {[%clk 0:02:47]} 8. O-O {[%clk 0:02:50]}  cxd4 {[%clk 0:02:46]} 9. exd4 {[%clk 0:02:50]}  b6 {[%clk 0:02:47]} 10. Bg5 {[%clk 0:02:47]}  h6 {[%clk 0:02:42]} 11. Bh4 {[%clk 0:02:47]}  Bb7 {[%clk 0:02:42]} 12. Bd3 {[%clk 0:02:43]}  Nbd7 {[%clk 0:02:42]} 13. Ne5 {[%clk 0:02:41]}  Bxc3 {[%clk 0:02:20]} 14. bxc3 {[%clk 0:02:40]}  Qc7 {[%clk 0:02:20]} 15. Bg3 {[%clk 0:02:25]}  Qd8 {[%clk 0:02:03]} 16. Bc2 {[%clk 0:02:19]}  Ne4 {[%clk 0:01:47]} 17. Qd3 {[%clk 0:02:06]}  Rc8 {[%clk 0:01:36]} 18. c4 {[%clk 0:02:00]}  Nxe5 {[%clk 0:01:23]} 19. Bxe5 {[%clk 0:01:59]}  f5 {[%clk 0:01:13]} 20. f3 {[%clk 0:01:53]}  Nf6 {[%clk 0:01:10]} 21. g4 {[%clk 0:01:49]}  g6 {[%clk 0:00:39]} 22. Qe3 {[%clk 0:01:45]}  Kh7 {[%clk 0:00:36]} 23. g5 {[%clk 0:01:38]}  Ng8 {[%clk 0:00:27]} 24. gxh6 {[%clk 0:01:34]}  Qh4 {[%clk 0:00:25]} 25. Bg7 {[%clk 0:01:31]}  Rfe8 {[%clk 0:00:22]} 26. Qe5 {[%clk 0:01:28]}  Nxh6 {[%clk 0:00:17]} 27. Bf6 {[%clk 0:01:22]}  Qh3 {[%clk 0:00:14]} 28. Be4 {[%clk 0:00:49]}  fxe4 {[%clk 0:00:09]} 29. fxe4 {[%clk 0:00:49]}  Ng4 {[%clk 0:00:07]} 30. Qf4 {[%clk 0:00:42]}  Rf8 {[%clk 0:00:03]} 31. Rf3 {[%clk 0:00:34]}  Rxf6 {[%clk 0:00:00]} 32. Rxh3+ {[%clk 0:00:33]} 1-0